fUST/lending_fUST_20250627
["ID","MTS","AMOUNT","RATE_DAILY","PERIOD"]
[367956950,1750975845517,-460.0,0.00021917,2]
[367956952,1750975845526,-460.0,0.00021917,2]
[367956954,1750975845536,-460.0,0.00021917,2]
[367956956,1750975845545,-460.0,0.00021917,2]
[367956958,1750975845556,-899.67,0.00021917,2]
[367956960,1750975845565,-460.0,0.00021917,2]
[367956962,1750975845574,-451.48385704,0.00021917,2]
[367956964,1750975845583,-460.0,0.00021917,2]
[367956966,1750975845592,-460.0,0.00021917,2]
[367956968,1750975845601,-460.0,0.00021917,2]
[367956970,1750975845611,-490.51,0.00021917,2]
[367956972,1750975845619,-460.0,0.00021917,2]
[367956974,1750975845629,-460.0,0.00021917,2]
[367956976,1750975845638,-460.0,0.00021917,2]
[367956977,1750975845647,-727.39,0.00021917,2]
[367956978,1750975845656,-639.4,0.00021917,2]
[367956979,1750975845665,-460.0,0.00021917,2]
[367956980,1750975845675,-460.0,0.00021917,2]
[367956981,1750975845683,-460.0,0.00021917,2]
[367956982,1750975845693,-460.0,0.00021917,2]
[367956983,1750975845702,-391.43909346,0.00021917,2]
[367956984,1750975845711,-460.0,0.00021917,2]
[367956985,1750975845720,-580.12420443,0.00021917,2]
[367956986,1750975845729,-460.0,0.00021917,2]
[367956987,1750975845739,-460.0,0.00021917,2]
[367956988,1750975845749,-592.13,0.00021917,2]
[367956989,1750975845757,-460.0,0.00021917,2]
[367956990,1750975845766,-460.0,0.00021917,2]
[367956991,1750975845776,-725.59,0.00021917,2]
[367956992,1750975845785,-460.0,0.00021917,2]
[367956993,1750975845794,-460.0,0.00021917,2]
[367956994,1750975845803,-1124.93,0.00021917,2]
[367956995,1750975845812,-460.0,0.00021917,2]
[367956996,1750975845821,-460.0,0.00021917,2]
[367956997,1750975845830,-460.0,0.00021917,2]
[367956998,1750975845839,-460.0,0.00021917,2]
[367956999,1750975845848,-159.01,0.00021917,2]
[367957000,1750975845858,-500.0,0.00021917,2]
[367957001,1750975845867,-460.0,0.00021917,2]
[367957002,1750975845875,-460.0,0.00021917,2]
[367957003,1750975845884,-460.0,0.00021917,2]
[367957004,1750975845894,-460.0,0.00021917,2]
[367957005,1750975845903,-460.0,0.00021917,2]
[367957006,1750975845913,-460.24,0.00021917,2]
[367957007,1750975845922,-460.0,0.00021917,2]
[367957008,1750975845931,-460.0,0.00021917,2]
[367957009,1750975845940,-460.0,0.00021917,2]
[367957010,1750975845949,-460.0,0.00021917,2]
[367957011,1750975845958,-460.0,0.00021917,2]
[367957012,1750975845967,-460.0,0.00021917,2]
[367957013,1750975845976,-466.7896856,0.00021917,2]
[367957014,1750975845986,-460.0,0.00021917,2]
[367957015,1750975845994,-460.0,0.00021917,2]
[367957016,1750975846004,-460.0,0.00021917,2]
[367957017,1750975846013,-460.0,0.00021917,2]
[367957018,1750975846022,-460.0,0.00021917,2]
[367957019,1750975846031,-460.0,0.00021917,2]
[367957020,1750975846040,-460.0,0.00021917,2]
[367957021,1750975846050,-460.0,0.00021917,2]
[367957022,1750975846059,-460.0,0.00021917,2]
[367957023,1750975846069,-460.0,0.00021917,2]
[367957029,1750975846078,-330.29771271,0.00021917,2]
[367957031,1750975846218,-513.27,0.00021917,2]
[367957033,1750975846228,-460.0,0.00021917,2]
[367957035,1750975846238,-460.0,0.00021917,2]
[367957037,1750975846248,-460.0,0.00021917,2]
[367957039,1750975846257,-460.0,0.00021917,2]
[367957041,1750975846267,-460.0,0.00021917,2]
[367957043,1750975846276,-497.51,0.00021917,2]
[367957045,1750975846286,-525.34,0.00021917,2]
[367957047,1750975846296,-460.0,0.00021917,2]
[367957049,1750975846305,-608.86,0.00021917,2]
[367957051,1750975846315,-460.0,0.00021917,2]
[367957053,1750975846324,-500.0,0.00021917,2]
[367957055,1750975846333,-460.0,0.00021917,2]
[367957057,1750975846342,-845.79,0.00021917,2]
[367957059,1750975846351,-460.0,0.00021917,2]
[367957061,1750975846364,-460.0,0.00021917,2]
[367957064,1750975846373,-728.83,0.00021917,2]
[367957067,1750975846382,-460.0,0.00021917,2]
[367957069,1750975846392,-460.0,0.00021917,2]
[367957072,1750975846402,-460.0,0.00021917,2]
[367957074,1750975846411,-460.0,0.00021917,2]
[367957076,1750975846420,-460.0,0.00021917,2]
[367957079,1750975846430,-460.0,0.00021917,2]
[367957081,1750975846439,-460.0,0.00021917,2]
[367957083,1750975846448,-460.0,0.00021917,2]
[367957085,1750975846459,-460.0,0.00021917,2]
[367957087,1750975846469,-460.0,0.00021917,2]
[367957089,1750975846478,-460.0,0.00021917,2]
[367957091,1750975846488,-500.0,0.00021917,2]
[367957093,1750975846497,-500.0,0.00021917,2]
[367957095,1750975846506,-258.81310148,0.00021917,2]
[367957097,1750975846516,-594.39,0.00021917,2]
[367957099,1750975846525,-274.84392406,0.00021917,2]
[367957101,1750975846535,-460.0,0.00021917,2]
[367957103,1750975846544,-460.0,0.00021917,2]
[367957105,1750975846553,-460.0,0.00021917,2]
[367957107,1750975846563,-662.49,0.00021917,2]
[367957109,1750975846572,-460.0,0.00021917,2]
[367957111,1750975846581,-460.0,0.00021917,2]
[367957113,1750975846591,-460.0,0.00021917,2]
[367957115,1750975846600,-460.0,0.00021917,2]
[367957117,1750975846609,-460.0,0.00021917,2]
[367957119,1750975846618,-460.0,0.00021917,2]
[367957121,1750975846627,-460.0,0.00021917,2]
[367957123,1750975846637,-178.85321617,0.00021917,2]
[367957125,1750975846646,-460.0,0.00021917,2]
[367957127,1750975846656,-1069.65,0.00021917,2]
[367957129,1750975846665,-460.0,0.00021917,2]
[367957131,1750975846674,-460.0,0.00021917,2]
[367957133,1750975846684,-499.19612893,0.00021917,2]
[367957135,1750975846693,-3867.6,0.00021917,2]
[367957136,1750975846703,-460.0,0.00021917,2]
[367957137,1750975846712,-460.0,0.00021917,2]
[367957138,1750975846721,-567.84,0.00021917,2]
[367957139,1750975846730,-460.0,0.00021917,2]
[367957140,1750975846739,-460.0,0.00021917,2]
[367957141,1750975846750,-460.0,0.00021917,2]
[367957142,1750975846759,-460.0,0.00021917,2]
[367957143,1750975846768,-460.0,0.00021917,2]
[367957145,1750975846778,-460.0,0.00021917,2]
[367957147,1750975846787,-1027.79,0.00021917,2]
[367957149,1750975846796,-857.55,0.00021917,2]
[367957151,1750975846805,-460.0,0.00021917,2]
[367957153,1750975846814,-460.0,0.00021917,2]
[367957155,1750975846823,-2972.09,0.00021917,2]
[367957157,1750975846832,-460.0,0.00021917,2]
[367957159,1750975846841,-470.49668149,0.00021917,2]
[367957161,1750975846850,-772.16,0.00021917,2]
[367957163,1750975846859,-460.0,0.00021917,2]
[367957165,1750975846868,-460.0,0.00021917,2]
[367957167,1750975846877,-460.0,0.00021917,2]
[367957169,1750975846887,-719.72,0.00021917,2]
[367957171,1750975846897,-409.44765557,0.00021917,2]
[367957173,1750975846907,-1556.07,0.00021917,2]
[367957175,1750975846916,-873.95,0.00021917,2]
[367957177,1750975846925,-460.0,0.00021917,2]
[367957179,1750975846935,-460.0,0.00021917,2]
[367957182,1750975846944,-460.0,0.00021917,2]
[367957185,1750975846953,-460.0,0.00021917,2]
[367957187,1750975846962,-460.0,0.00021917,2]
[367957189,1750975846971,-584.79,0.00021917,2]
[367957191,1750975846980,-460.0,0.00021917,2]
[367957193,1750975846989,-460.0,0.00021917,2]
[367957195,1750975846998,-510.03,0.00021917,2]
[367957197,1750975847007,-540.0,0.00021917,2]
[367957199,1750975847017,-881.45,0.00021917,2]
[367957201,1750975847026,-460.0,0.00021917,2]
[367957203,1750975847036,-460.0,0.00021917,2]
[367957205,1750975847046,-1254.88,0.00021917,2]
[367957207,1750975847055,-460.0,0.00021917,2]
[367957209,1750975847064,-460.0,0.00021917,2]
[367957211,1750975847074,-460.0,0.00021917,2]
[367957213,1750975847083,-460.0,0.00021917,2]
[367957215,1750975847092,-460.0,0.00021917,2]
[367957217,1750975847102,-460.0,0.00021917,2]
[367957219,1750975847111,-460.0,0.00021917,2]
[367957221,1750975847120,-343.78969584,0.00021917,2]
[367957223,1750975847130,-994.0,0.00021917,2]
[367957225,1750975847139,-460.66327388,0.00021917,2]
[367957227,1750975847149,-460.0,0.00021917,2]
[367957229,1750975847158,-705.05,0.00021917,2]
[367957231,1750975847168,-460.0,0.00021917,2]
[367957233,1750975847177,-3434.63,0.00021917,2]
[367957235,1750975847187,-460.0,0.00021917,2]
[367957237,1750975847197,-1817.13,0.00021917,2]
[367957239,1750975847206,-460.0,0.00021917,2]
[367957241,1750975847216,-460.0,0.00021917,2]
[367957243,1750975847225,-460.0,0.00021917,2]
[367957245,1750975847235,-870.37,0.00021917,2]
[367957247,1750975847245,-2286.04,0.00021917,2]
[367957249,1750975847254,-460.0,0.00021917,2]
[367957251,1750975847264,-460.0,0.00021917,2]
[367957253,1750975847273,-460.0,0.00021917,2]
[367957255,1750975847282,-460.0,0.00021917,2]
[367957257,1750975847291,-707.2,0.00021917,2]
[367957259,1750975847301,-460.0,0.00021917,2]
[367957261,1750975847313,-460.0,0.00021917,2]
[367957263,1750975847322,-784.16,0.00021917,2]
[367957265,1750975847332,-263.26429654,0.00021917,2]
[367957267,1750975847341,-460.0,0.00021917,2]
[367957269,1750975847350,-460.0,0.00021917,2]
[367957272,1750975847363,-460.0,0.00021917,2]
[367957274,1750975847373,-1151.87,0.00021917,2]
[367957276,1750975847382,-506.47,0.00021917,2]
[367957277,1750975847391,-465.57,0.00021917,2]
[367957280,1750975847402,-467.1192298,0.00021917,2]
[367957282,1750975847411,-465.37962827,0.00021917,2]
[367957284,1750975847420,-460.0,0.00021917,2]
[367957285,1750975847429,-460.0,0.00021917,2]
[367957288,1750975847440,-460.0,0.00021917,2]
[367957289,1750975847451,-613.18,0.00021917,2]
[367957291,1750975847460,-460.0,0.00021917,2]
[367957293,1750975847470,-460.0,0.00021917,2]
[367957295,1750975847479,-460.0,0.00021917,2]
[367957297,1750975847488,-501.07,0.00021917,2]
[367957300,1750975847498,-460.0,0.00021917,2]
[367957302,1750975847508,-460.0,0.00021917,2]
[367957304,1750975847518,-460.0,0.00021917,2]
[367957306,1750975847527,-460.0,0.00021917,2]
[367957308,1750975847536,-467.77457106,0.00021917,2]
[367957310,1750975847546,-460.0,0.00021917,2]
[367957312,1750975847555,-460.0,0.00021917,2]
[367957314,1750975847564,-621.75,0.00021917,2]
[367957315,1750975847572,-460.0,0.00021917,2]
[367957317,1750975847581,-636.53,0.00021917,2]
[367957319,1750975847590,-151.0,0.00021917,2]
[367957321,1750975847598,-460.0,0.00021917,2]
[367957323,1750975847606,-597.36,0.00021917,2]
[367957325,1750975847615,-460.0,0.00021917,2]
[367957327,1750975847625,-460.0,0.00021917,2]
[367957329,1750975847634,-460.0,0.00021917,2]
[367957331,1750975847643,-460.0,0.00021917,2]
[367957333,1750975847652,-460.0,0.00021917,2]
[367957335,1750975847661,-2344.88,0.00021917,2]
[367957337,1750975847669,-460.0,0.00021917,2]
[367957339,1750975847677,-723.94,0.00021917,2]
[367957341,1750975847687,-460.0,0.00021917,2]
[367957343,1750975847696,-460.0,0.00021917,2]
[367957345,1750975847704,-460.0,0.00021917,2]
[367957347,1750975847713,-992.51,0.00021917,2]
[367957349,1750975847722,-583.36,0.00021917,2]
[367957351,1750975847733,-542.39,0.00021917,2]
[367957353,1750975847743,-460.0,0.00021917,2]
[367957355,1750975847751,-3516.36,0.00021917,2]
[367957356,1750975847761,-503.05,0.00021917,2]
[367957358,1750975847769,-460.0,0.00021917,2]
[367957360,1750975847779,-502.62,0.00021917,2]
[367957362,1750975847788,-462.95,0.00021917,2]
[367957364,1750975847797,-736.94,0.00021917,2]
[367957366,1750975847806,-2149.27,0.00021917,2]
[367957369,1750975847816,-731.46,0.00021917,2]
[367957371,1750975847828,-684.39,0.00021917,2]
[367957372,1750975847837,-692.38,0.00021917,2]
[367957374,1750975847846,-3249.94,0.00021917,2]
[367957377,1750975847855,-476.38,0.00021917,2]
[367957379,1750975847865,-460.0,0.00021917,2]
[367957381,1750975847874,-1456.05,0.00021917,2]
[367957383,1750975847883,-4841.48,0.00021917,2]
[367957385,1750975847892,-460.0,0.00021917,2]
[367957387,1750975847901,-513.14,0.00021917,2]
[367957388,1750975847911,-460.0,0.00021917,2]
[367957390,1750975847920,-460.0,0.00021917,2]
[367957393,1750975847929,-662.49,0.00021917,2]
[367957394,1750975847938,-612.82,0.00021917,2]
[367957396,1750975847947,-1562.7,0.00021917,2]
[367957399,1750975847956,-1571.75,0.00021917,2]
[367957400,1750975847966,-823.92,0.00021917,2]
[367957402,1750975847975,-690.08,0.00021917,2]
[367957404,1750975847984,-460.0,0.00021917,2]
[367957406,1750975847993,-460.0,0.00021917,2]
[367957408,1750975848003,-1317.05,0.00021917,2]
[367957410,1750975848012,-460.0,0.00021917,2]
[367957412,1750975848021,-460.0,0.00021917,2]
[367957414,1750975848031,-199.74081682,0.00021917,2]
[367957416,1750975848040,-1025.39,0.00021917,2]
[367957418,1750975848049,-795.38,0.00021917,2]
[367957420,1750975848058,-460.0,0.00021917,2]
[367957422,1750975848067,-460.0,0.00021917,2]
[367957424,1750975848077,-460.0,0.00021917,2]
[367957426,1750975848086,-460.0,0.00021917,2]
[367957428,1750975848095,-460.0,0.00021917,2]
[367957430,1750975848104,-460.0,0.00021917,2]
[367957432,1750975848114,-589.14,0.00021917,2]
[367957434,1750975848123,-851.01,0.00021917,2]
[367957436,1750975848132,-2177.89,0.00021917,2]
[367957438,1750975848141,-460.0,0.00021917,2]
[367957440,1750975848151,-460.0,0.00021917,2]
[367957442,1750975848161,-1748.17,0.00021917,2]
[367957444,1750975848170,-935.4,0.00021917,2]
[367957445,1750975848179,-460.0,0.00021917,2]
[367957447,1750975848188,-150.0,0.00021918,2]
[367957449,1750975848197,-406.0,0.00021926,2]
[367957451,1750975848206,-500.0,0.00021973,2]
[367957453,1750975848215,-500.0,0.00021973,2]
[367957455,1750975848225,-500.0,0.00021973,2]
[367957457,1750975848234,-500.0,0.00021973,2]
[367957459,1750975848243,-500.0,0.00021973,2]
[367957461,1750975848252,-500.0,0.00021973,2]
[367957463,1750975848262,-500.0,0.00021973,2]
[367957465,1750975848271,-171.19469755,0.00021973,2]
[367957467,1750975848280,-500.0,0.00021973,2]
[367957468,1750975848289,-500.0,0.00021973,2]
[367957469,1750975848299,-500.0,0.00021973,2]
[367957470,1750975848308,-547.72040314,0.00021973,2]
[367957471,1750975848317,-500.0,0.00021973,2]
[367957472,1750975848328,-500.0,0.00021973,2]
[367957473,1750975848337,-199.25307315,0.00021973,2]
[367957474,1750975848346,-500.0,0.00021973,2]
[367957475,1750975848356,-500.0,0.00021973,2]
[367957476,1750975848370,-464.29479316,0.00021973,2]
[367957477,1750975848380,-500.43078147,0.00021973,2]
[367957478,1750975848390,-500.0,0.00021973,2]
[367957479,1750975848399,-500.0,0.00021973,2]
[367957480,1750975848411,-153.17919225,0.00021973,2]
[367957481,1750975848421,-600.0,0.00021973,2]
[367957482,1750975848429,-166.916982,0.00021973,7]
[367957483,1750975848439,-1000.0,0.0002198,5]
[367957484,1750975848449,-167.4831481,0.00021999,2]
[367957485,1750975848458,-450.0,0.00021999,2]
[367957486,1750975848467,-340.55786563,0.00021999,2]
[367957487,1750975848476,-238.39050594,0.00021999,2]
[367957488,1750975848486,-160.75094548,0.00022,2]
[367957489,1750975848495,-787.64090698,0.00022,2]
[367957490,1750975848506,-500.0,0.00022,8]
[367957491,1750975848515,-500.0,0.00022,8]
[367957492,1750975848525,-21802.96562232,0.00022,2]
[367957493,1750975848534,-2000.0,0.00022,2]
[367957495,1750975848544,-2000.0,0.00022,2]
[367957497,1750975848553,-160.0,0.00022,3]
[367957498,1750975848563,-2000.0,0.00022,2]
[367957499,1750975848574,-37848.85603756,0.00022,2]
[367957500,1750975848583,-351.72559252,0.00022,2]
[367957501,1750975848593,-548.93598729,0.00022,2]
[367957502,1750975848602,-161.37138456,0.00022,2]
[367957503,1750975848612,-4074.78,0.00022,7]
[367957504,1750975848622,-2428.75,0.00022,3]
[367957505,1750975848632,-620.33488513,0.00022,2]
[367957506,1750975848642,-261734.91656762,0.00022,2]
[367957524,1750975848836,-5291.13551306,0.00022,2]
[367957545,1750975849035,-460.0,0.00021643,2]
[367957547,1750975849045,-460.0,0.00021917,2]
[367957549,1750975849054,-6409.24365692,0.00022,2]
[367957551,1750975849066,-2209.36726407,0.00022,2]
[367957553,1750975849077,-711.658522,0.00022,2]
[367957568,1750975849217,-275.72,0.00021633,10]
[367957570,1750975849226,-460.0,0.00021643,2]
[367957572,1750975849236,-3558.10505938,0.00022,2]
[367957580,1750975849302,-460.0,0.00021643,2]
[367957582,1750975849311,-336.64125129,0.00021643,2]
[367957584,1750975849327,-123.35874871,0.00021643,2]
[367957586,1750975849336,-282.64125129,0.00021643,2]
[367960272,1750975928902,165.508446,0.00013699,2]
[367960274,1750976148131,221.64214944,0.000222,69]
[367960277,1750976633435,221.64214944,0.000222,69]
[367960294,1750977032696,-150.0,0.000201,2]
[367960295,1750977032706,-164.8153706,0.00021443,2]
[367960297,1750977032716,-69.30139782,0.00021493,2]
[367960299,1750977032728,-95.51397278,0.00021493,2]
[367960301,1750977032738,-600.0,0.00021541,2]
[367960303,1750977032748,-772.944562,0.00021541,2]
[367960305,1750977032757,-300.0,0.00021541,2]
[367960307,1750977032767,-191.59747328,0.00021541,2]
[367960310,1750977032781,-108.40252672,0.00021541,2]
[367960312,1750977032791,-312.76621596,0.00021541,2]
[367960314,1750977032802,-887.23378404,0.00021541,2]
[367960316,1750977032813,-645.61,0.00021542,2]
[367960317,1750977032824,-460.0,0.00021542,2]
[367960319,1750977032834,-460.0,0.00021542,2]
[367960321,1750977032843,-460.0,0.00021542,2]
[367960324,1750977032853,-460.0,0.00021542,2]
[367960325,1750977032862,-286.35152194,0.00021542,2]
[367960334,1750977032931,-569.46847806,0.00021542,2]
[367960336,1750977032942,-460.0,0.00021542,2]
[367960338,1750977032951,-525.03,0.00021542,2]
[367960340,1750977032960,-460.0,0.00021542,2]
[367960342,1750977032971,-911.17,0.00021542,2]
[367960344,1750977032980,-460.0,0.00021542,2]
[367960346,1750977032990,-460.0,0.00021542,2]
[367960348,1750977032999,-521.76,0.00021542,2]
[367960350,1750977033008,-460.0,0.00021542,2]
[367960352,1750977033018,-646.61,0.00021542,2]
[367960354,1750977033027,-460.0,0.00021542,2]
[367960356,1750977033035,-460.0,0.00021542,2]
[367960358,1750977033045,-463.67836768,0.00021542,2]
[367960360,1750977033055,-460.0,0.00021542,2]
[367960362,1750977033064,-500.0,0.00021542,2]
[367960364,1750977033074,-460.0,0.00021542,2]
[367960366,1750977033084,-460.0,0.00021542,2]
[367960368,1750977033093,-460.0,0.00021542,2]
[367960370,1750977033103,-430.0,0.00021542,2]
[367960372,1750977033112,-460.0,0.00021542,2]
[367960374,1750977033121,-1087.05,0.00021542,2]
[367960376,1750977033131,-164.8153706,0.00021543,2]
[367960378,1750977033140,-177.31747366,0.00021543,2]
[367960380,1750977033150,-265.447639,0.0002156,4]
[367960382,1750977033160,-207.4,0.00021628,2]
[367960384,1750977033169,-167.08,0.00021631,3]
[367960386,1750977033179,-501.24,0.00021631,3]
[367960388,1750977033190,-797.82,0.00021631,10]
[367960390,1750977033199,-580.8,0.00021631,10]
[367960392,1750977033209,-460.0,0.00021639,2]
[367960394,1750977033219,-460.0,0.00021639,2]
[367960396,1750977033228,-460.0,0.00021639,2]
[367960398,1750977033238,-460.0,0.00021639,2]
[367960400,1750977033248,-461.91473196,0.00021639,2]
[367960402,1750977033257,-460.0,0.00021639,2]
[367960404,1750977033267,-509.724868,0.00021639,2]
[367960406,1750977033276,-420.0,0.00021639,2]
[367960408,1750977033286,-255.24297421,0.00021639,2]
[367960410,1750977033297,-800.57,0.00021639,2]
[367960413,1750977033307,-460.0,0.00021639,2]
[367960415,1750977033316,-467.1192298,0.00021639,2]
[367960417,1750977033326,-463.90388818,0.00021639,2]
[367960419,1750977033336,-460.0,0.00021639,2]
[367960421,1750977033346,-460.0,0.00021639,2]
[367960422,1750977033355,-460.0,0.00021639,2]
[367960424,1750977033365,-3643.06,0.0002164,2]
[367960425,1750977033375,-460.0,0.0002164,2]
[367960426,1750977033386,-875.32,0.0002164,2]
[367960428,1750977033395,-460.0,0.0002164,2]
[367960430,1750977033405,-460.0,0.0002164,2]
[367960431,1750977033415,-460.77920377,0.0002164,2]
[367960432,1750977033425,-425.07301193,0.0002164,2]
[367960433,1750977033436,-460.0,0.0002164,2]
[367960434,1750977033445,-442.50372634,0.0002164,2]
[367960435,1750977033455,-460.0,0.0002164,2]
[367960436,1750977033464,-460.0,0.0002164,2]
[367960437,1750977033474,-337.93745096,0.0002164,2]
[367960438,1750977033484,-460.0,0.0002164,2]
[367960439,1750977033494,-460.0,0.0002164,2]
[367960440,1750977033504,-649.62,0.0002164,2]
[367960441,1750977033514,-639.4,0.0002164,2]
[367960442,1750977033525,-3303.04,0.0002164,2]
[367960443,1750977033535,-460.0,0.0002164,2]
[367960444,1750977033545,-500.0,0.0002164,2]
[367960445,1750977033554,-532.11894031,0.0002164,2]
[367960446,1750977033563,-500.0,0.0002164,2]
[367960447,1750977033573,-268.8338297,0.0002164,2]
[367960448,1750977033583,-500.0,0.0002164,2]
[367960449,1750977033592,-500.0,0.0002164,2]
[367960450,1750977033603,-500.0,0.0002164,2]
[367960451,1750977033613,-500.0,0.0002164,2]
[367960452,1750977033623,-500.0,0.0002164,2]
[367960453,1750977033633,-500.0,0.0002164,2]
[367960454,1750977033643,-500.0,0.0002164,2]
[367960456,1750977033653,-500.0,0.0002164,2]
[367960458,1750977033663,-500.0,0.0002164,2]
[367960460,1750977033673,-160.0,0.00021641,2]
[367960462,1750977033684,-230.24506774,0.00021641,2]
[367960464,1750977033693,-160.0,0.00021641,2]
[367960466,1750977033703,-836.92866116,0.00021641,2]
[367960468,1750977033713,-183.645,0.00021641,2]
[367960470,1750977033723,-460.0,0.00021641,2]
[367960472,1750977033733,-400.0,0.00021641,2]
[367960474,1750977033743,-460.0,0.00021641,2]
[367960475,1750977033753,-460.0,0.00021641,2]
[367960477,1750977033763,-500.0,0.00021641,2]
[367960479,1750977033773,-264.35051329,0.00021641,2]
[367960481,1750977033783,-412.96813616,0.00021641,2]
[367960483,1750977033793,-460.0,0.00021641,2]
[367960485,1750977033803,-460.0,0.00021641,2]
[367960487,1750977033816,-460.0,0.00021641,2]
[367960489,1750977033826,-460.0,0.00021641,2]
[367960491,1750977033836,-460.0,0.00021641,2]
[367960493,1750977033846,-460.0,0.00021641,2]
[367960495,1750977033856,-460.0,0.00021641,2]
[367960497,1750977033866,-460.0,0.00021641,2]
[367960499,1750977033876,-440.0,0.00021641,2]
[367960501,1750977033885,-460.0,0.00021641,2]
[367960503,1750977033895,-460.0,0.00021641,2]
[367960505,1750977033905,-320.0,0.00021641,2]
[367960507,1750977033914,-377.3368377,0.00021641,2]
[367960509,1750977033924,-460.0,0.00021641,2]
[367960511,1750977033935,-460.0,0.00021641,2]
[367960513,1750977033944,-705.76,0.00021641,2]
[367960515,1750977033954,-574.39,0.00021641,2]
[367960517,1750977033963,-460.0,0.00021641,2]
[367960519,1750977033973,-2875.27,0.00021641,2]
[367960521,1750977033982,-460.0,0.00021641,2]
[367960523,1750977033992,-153.58883167,0.00021641,2]
[367960525,1750977034006,-306.41116833,0.00021641,2]
[367960527,1750977034015,-460.0,0.00021641,2]
[367960529,1750977034024,-460.0,0.00021641,2]
[367960531,1750977034034,-460.98632386,0.00021641,2]
[367960533,1750977034043,-460.0,0.00021641,2]
[367960535,1750977034054,-1207.8,0.00021641,2]
[367960537,1750977034063,-460.0,0.00021641,2]
[367960539,1750977034072,-546.1,0.00021641,2]
[367960541,1750977034082,-565.33281187,0.00021641,2]
[367960543,1750977034091,-460.0,0.00021641,2]
[367960545,1750977034100,-460.0,0.00021641,2]
[367960547,1750977034110,-460.0,0.00021641,2]
[367960549,1750977034119,-460.0,0.00021641,2]
[367960551,1750977034128,-460.0,0.00021641,2]
[367960553,1750977034138,-460.0,0.00021641,2]
[367960555,1750977034147,-460.0,0.00021641,2]
[367960557,1750977034156,-665.46,0.00021641,2]
[367960559,1750977034166,-460.0,0.00021641,2]
[367960560,1750977034175,-1107.26,0.00021641,2]
[367960561,1750977034185,-460.0,0.00021641,2]
[367960563,1750977034195,-460.0,0.00021641,2]
[367960565,1750977034205,-3330.61,0.00021641,2]
[367960567,1750977034214,-912.34,0.00021641,2]
[367960569,1750977034224,-460.0,0.00021641,2]
[367960571,1750977034234,-460.0,0.00021641,2]
[367960572,1750977034244,-460.0,0.00021641,2]
[367960574,1750977034254,-460.0,0.00021641,2]
[367960576,1750977034263,-460.0,0.00021641,2]
[367960578,1750977034273,-460.0,0.00021641,2]
[367960580,1750977034282,-484.27,0.00021641,2]
[367960582,1750977034291,-460.0,0.00021641,2]
[367960584,1750977034301,-460.0,0.00021641,2]
[367960586,1750977034310,-776.31,0.00021641,2]
[367960588,1750977034319,-460.0,0.00021641,2]
[367960590,1750977034329,-460.0,0.00021641,2]
[367960592,1750977034339,-460.0,0.00021641,2]
[367960594,1750977034348,-460.0,0.00021641,2]
[367960596,1750977034357,-549.06,0.00021641,2]